Workbook

Sheet budget 2014-15
B3: Proposal for 2014-15
B4: ( July 2014 - June 2015 )
A6: A | B6: Salary of DBRT staff
A7: Sr.No | C7: Qualification | D7: Actual Salary 2012-13(Per month) | E7: 10% increase in salary over last year is considered. | F7: Proposed salary ** | G7: Annual salary | H7: El Contibution | I7: EPF Contibution | J7: Total Annual Salary
A8: 1 | B8: Yogesh Kenge | C8: Msc( DBRT co-ordinator ) | D8: 12000 | E8: =+D8/10 -> 1200 | F8: =+D8+E8 -> 13200 | G8: =+F8*12 -> 158400 | H8: =D8 -> 12000 | I8: =+G8/12.5 -> 12672 | J8: =+G8+H8+I8 -> 183072
A9: 2 | B9: Laxamn Jadhav | C9: DBRT (Workshop) | D9: 10120 | E9: =+D9/10 -> 1012 | F9: =+D9+E9 -> 11132 | G9: =+F9*12 -> 133584 | H9: =D9 -> 10120 | I9: =+G9/12.5 -> 10686.72 | J9: =+G9+H9+I9 -> 154390.72
A10: 3 | B10: Milind Ovol | C10: Diploma Agriculture(Agri/AH) | D10: 10000 | E10: 1000 | F10: 11000 | G10: 132000 | H10: 10000 | I10: 10560 | J10: 152560
A11: 4 | B11: Anita Pansare | C11: B.Tech (Food Technology) | D11: 8000 | E11: 800 | F11: 8800 | G11: 105600 | H11: 8000 | I11: 0 | J11: 113600
A12: 5 | B12: Vishal Jagatap | C12: BA ,DBRT ( Electrical) | D12: 10120 | E12: 1012 | F12: 11132 | G12: 133584 | H12: 10120 | I12: 10686.72 | J12: 154390.72
A13: 6 | B13: Pradnya Shindekar | C13: Diploma (Electronics) | D13: 8000 | E13: 800 | F13: 8800 | G13: 105600 | H13: 8000 | I13: 8448 | J13: 122048
A14: 7 | B14: Anita Jangam | C14: M.Com(Accounts) | D14: 6000 | E14: 600 | F14: 6600 | G14: 79200 | H14: 6000 | I14: 6336 | J14: 91536
A15: 8 | B15: Alaka Jadhav | C15: Kitchen | D15: 4420 | E15: 442 | F15: 4862 | G15: 58344 | H15: 4420 | I15: 0 | J15: 62764
A16: 9 | B16: Kausabai Deshmukh | C16: Kitchen | D16: 4420 | E16: 442 | F16: 4862 | G16: 58344 | H16: 4420 | I16: 0 | J16: 62764
A17: 10 | B17: Rukmini Lokande | C17: Kitchen | D17: 4420 | E17: 442 | F17: 4862 | G17: 58344 | H17: 4420 | I17: 0 | J17: 62764
A18: 11 | B18: Savita Bhandalkar | C18: Kitchen | D18: 4420 | E18: 442 | F18: 4862 | G18: 58344 | H18: 4420 | I18: 0 | J18: 62764
B19: Total | D19: =SUM(D8:D18) -> 81920 | E19: 8192 | F19: 90112 | G19: 1081344 | H19: 81920 | I19: 59389.44 | J19: 1222653.44
A21: B | B21: Proposed Expenses
A23: Sr.No | B23: Particuler | C23: Project ed cost for DBRT | E23: TOTAL BUDGET : DBRT program 2013-14
A24: 1 | B24: Utilities | C24: 34485
A25: 2 | B25: Internet Charges | C25: 13915 | E25: Table (A) | F25: Salary of DBRT staff | H25: 1222653.44
A26: 3 | B26: Electricity | C26: 43560 | E26: Table (B) | F26: Proposed Expenses | H26: 208846
A27: 4 | B27: Water | C27: 21780 | E27: Total | H27: =SUM(H25:H26) -> 1431499.44
A28: 5 | B28: Other expenses | C28: 30250
A29: 6 | B29: maintainance of machines/ wear and tear | C29: 24200
A30: 7 | B30: Communication | C30: 4356
A31: 8 | B31: Travel | C31: 36300
B32: Total | C32: =SUM(C24:C31) -> 208846
A35: c
A36: 1 | B36: ASHA support requested ( 2013- 14 ) | C36: 760000
A37: 2 | B37: ASHA support requested ( 2012- 13 ) | C37: 734000
A38: 3 | B38: ASHA support requested ( 2011-12 ) | C38: 772000
A39: 4 | B39: ASHA support requested ( 2010-11 ) | C39: 589760
B41: { Kitchen Grocery expenses are maintained separately. They are @ Rs.1200 per month per students. i.e Rs.14400 per annum.
B42: Kitchen budget is maintained separately on at cost basis }

Sheet Actual utilization 2013-14
B3: Actual utilization
B5: Expences Sheet
A6: Sr No | B6: Particuler | C6: Budget 2013-14 | D6: 01 April 201231 March 2013
A7: 1 | B7: Asha Salary | C7: 776000 | D7: 802083
A8: 2 | B8: Asha utilities | D8: 110775.25
B9: Total | C9: =SUM(C7) -> 776000 | D9: =SUM(D7:D8) -> 912858.25
A11: Note | B11: Excess expenses were met from donation and partly by Community service income.

Sheet funding need
A3: FUNDING NEED
A5: Sr.No | B5: Particuler | C5: Proposed 2014-15
A6: 1 | B6: DBRT funding needs (Ref sheed Budget 13-14) | C6: 1431499.44
A7: 2 | B7: Less Students Tuition Fees Rs.8600 * 45 students | C7: =45*8600 -> 387000
A9: 3 | B9: TOTAL FUND REQUESTED From ASHA for 2014-15 | C9: =+C6-C7 -> 1044499.44
A10: 4 | B10: Last years funds received from ASHA | C10: 776000
